fUSD/lending_fUSD_20241114
["ID","MTS","AMOUNT","RATE_DAILY","PERIOD"]
[342183359,1731561046493,-151.0,0.00012329,2]
[342183360,1731561046502,-354.697476,0.00012329,2]
[342183361,1731561046512,-354.697476,0.00012329,2]
[342183362,1731561046522,-429.199424,0.00012329,2]
[342183363,1731561046531,-438.170592,0.00012329,2]
[342183364,1731561046541,-438.170592,0.00012329,2]
[342183365,1731561046550,-214.939297,0.00012329,2]
[342183366,1731561046559,-214.939297,0.00012329,2]
[342183367,1731561046568,-151.0,0.00012329,2]
[342183368,1731561046578,-261.169898,0.00012329,2]
[342183369,1731561046587,-261.169898,0.00012329,2]
[342183370,1731561046598,-151.0,0.00012329,2]
[342183371,1731561046608,-335.857729,0.00012329,2]
[342183372,1731561046617,-335.857729,0.00012329,2]
[342183373,1731561046627,-641.829879,0.00012329,2]
[342183374,1731561046637,-641.829879,0.00012329,2]
[342183375,1731561046646,-151.0,0.00012329,2]
[342183376,1731561046655,-151.0,0.00012329,2]
[342183377,1731561046665,-151.0,0.00012329,2]
[342183378,1731561046674,-151.0,0.00012329,2]
[342183379,1731561046684,-260.288159,0.00012329,2]
[342183380,1731561046693,-260.288159,0.00012329,2]
[342183381,1731561046702,-1335.76,0.00012329,2]
[342183382,1731561046711,-11256.5,0.000124,2]
[342183383,1731561046720,-3000.0,0.000124,2]
[342183384,1731561046729,-150.0,0.00012409,2]
[342183385,1731561046738,-175.026146,0.0001241,2]
[342183386,1731561046747,-1000.0,0.00012464,2]
[342183387,1731561046756,-1487.77,0.00012465,2]
[342183388,1731561046766,-292.57495137,0.000125,2]
[342183389,1731561046775,-1054.0,0.0001252,2]
[342183390,1731561046784,-1785.89,0.00012545,2]
[342183391,1731561046794,-175.026146,0.00012562,2]
[342183392,1731561046803,-164.42,0.0001261,2]
[342183393,1731561046812,-168.27,0.00012671,2]
[342183394,1731561046821,-639868.51953875,0.0001269,3]
[342183395,1731561046830,-163.842592,0.000127,3]
[342183396,1731561046840,-13639.0,0.000127,2]
[342183397,1731561046851,-5933.0,0.000127,2]
[342183398,1731561046860,-150.0,0.000127,2]
[342183399,1731561046870,-1160.0,0.000127,2]
[342183400,1731561046879,-175.026146,0.00012713,2]
[342183401,1731561046888,-1487.77,0.00012739,2]
[342183402,1731561046897,-590.72,0.00012769,2]
[342183403,1731561046906,-1000.0,0.000128,3]
[342183404,1731561046915,-250.0,0.00012877,2]
[342183405,1731561046925,-200.0,0.00012887,2]
[342183406,1731561046935,-71674.52687943,0.00012887,2]
[342183407,1731561046944,-372.79340155,0.00012888,2]
[342183408,1731561046954,-940.38146423,0.00012888,2]
[342183409,1731561046963,-71674.52687943,0.00012889,2]
[342183410,1731561046973,-9265.84241572,0.0001289,2]
[342183411,1731561046983,-200.0,0.0001289,2]
[342183412,1731561046992,-316.0057683,0.00012891,2]
[342183413,1731561047001,-642.41053861,0.00012891,2]
[342183414,1731561047010,-3575.03182191,0.00012891,2]
[342183415,1731561047020,-200.0,0.00012892,2]
[342183416,1731561047029,-200.0,0.00012892,2]
[342183417,1731561047039,-181.5,0.00012893,2]
[342183418,1731561047048,-506.7246422,0.00012894,2]
[342183419,1731561047058,-1853.16848314,0.00012895,2]
[342183420,1731561047067,-382811.06451551,0.00012895,2]
[342183421,1731561047077,-1853.16848314,0.00012897,2]
[342183422,1731561047087,-1853.16848314,0.00012897,2]
[342183423,1731561047099,-642.41053861,0.00012898,2]
[342183424,1731561047108,-506.7246422,0.00012899,2]
[342183425,1731561047118,-422.84285337,0.00012899,2]
[342183426,1731561047128,-866.225,0.00012899,2]
[342183427,1731561047137,-9265.84241572,0.00012899,2]
[342183428,1731561047149,-506.7246422,0.000129,2]
[342183429,1731561047159,-801.50203946,0.000129,2]
[342183430,1731561047168,-5762.32234884,0.000129,2]
[342183431,1731561047179,-5762.3223488,0.000129,2]
[342183432,1731561047188,-5762.3223488,0.000129,2]
[342183433,1731561047197,-5762.3223488,0.000129,2]
[342183434,1731561047208,-5762.3223488,0.000129,2]
[342183435,1731561047219,-5762.3223488,0.000129,2]
[342183436,1731561047229,-422.84285337,0.000129,2]
[342183437,1731561047238,-422.84285337,0.00012901,2]
[342183438,1731561047248,-71674.52687943,0.00012901,2]
[342183439,1731561047257,-200.0,0.00012901,2]
[342183440,1731561047267,-372.79340155,0.00012901,2]
[342183441,1731561047276,-200.0,0.00012902,2]
[342183442,1731561047286,-200.0,0.00012904,2]
[342183443,1731561047295,-3444.29752377,0.00012904,2]
[342183444,1731561047304,-1500.0,0.00012904,2]
[342183445,1731561047313,-372.79340155,0.00012904,2]
[342183446,1731561047323,-372.79340155,0.00012905,2]
[342183447,1731561047332,-200.0,0.00012905,2]
[342183448,1731561047342,-1171.11570994,0.00012906,2]
[342183449,1731561047355,-382811.06451551,0.00012906,2]
[342183450,1731561047365,-316.0057683,0.00012906,2]
[342183451,1731561047375,-3575.03182191,0.00012907,2]
[342183452,1731561047384,-316.0057683,0.00012907,2]
[342183453,1731561047394,-263.14728262,0.00012907,2]
[342183454,1731561047403,-200.0,0.00012908,2]
[342183455,1731561047414,-200.0,0.00012908,2]
[342183456,1731561047423,-200.0,0.0001291,2]
[342183457,1731561047432,-9265.84241572,0.0001291,2]
[342183458,1731561047442,-316.0057683,0.0001291,2]
[342183459,1731561047451,-3575.03182191,0.00012911,2]
[342183460,1731561047460,-1171.11570994,0.00012911,2]
[342183461,1731561047470,-940.38146423,0.00012911,2]
[342183462,1731561047479,-382811.06451551,0.00012912,2]
[342183463,1731561047489,-940.38146423,0.00012912,2]
[342183464,1731561047498,-200.0,0.00012915,2]
[342183465,1731561047507,-1853.16848314,0.00012916,2]
[342183466,1731561047517,-3444.29752377,0.00012918,2]
[342183467,1731561047526,-7311.08159383,0.00012918,2]
[342183468,1731561047536,-200.0,0.0001292,2]
[342183469,1731561047545,-382811.06451551,0.0001292,2]
[342183470,1731561047555,-200.0,0.0001292,2]
[342183471,1731561047565,-71674.52687943,0.00012921,2]
[342183472,1731561047574,-7311.08159383,0.00012921,2]
[342183473,1731561047583,-263.14728262,0.00012924,2]
[342183474,1731561047592,-200.0,0.00012924,2]
[342183475,1731561047605,-642.41053861,0.00012925,2]
[342183476,1731561047615,-200.0,0.00012926,2]
[342183477,1731561047624,-200.0,0.00012927,2]
[342183478,1731561047634,-200.0,0.00012927,2]
[342183479,1731561047643,-940.38146423,0.00012927,2]
[342183480,1731561047652,-200.0,0.00012927,2]
[342183481,1731561047662,-200.0,0.00012927,2]
[342183482,1731561047671,-263.14728262,0.00012928,2]
[342183483,1731561047681,-316.0057683,0.00012928,2]
[342183484,1731561047691,-940.38146423,0.00012928,2]
[342183485,1731561047700,-506.7246422,0.00012929,2]
[342183486,1731561047710,-200.0,0.0001293,2]
[342183487,1731561047719,-506.7246422,0.0001293,2]
[342183488,1731561047728,-3575.03182191,0.00012931,2]
[342183489,1731561047737,-382811.06451551,0.00012931,2]
[342183490,1731561047747,-1171.11570994,0.00012933,2]
[342183491,1731561047756,-71674.52687943,0.00012933,2]
[342183492,1731561047765,-3444.29752377,0.00012933,2]
[342183493,1731561047774,-7311.08159383,0.00012933,2]
[342183494,1731561047784,-7311.08159383,0.00012933,2]
[342183495,1731561047794,-372.79340155,0.00012935,2]
[342183496,1731561047804,-422.84285337,0.00012936,2]
[342183497,1731561047813,-1171.11570994,0.00012937,2]
[342183498,1731561047823,-1171.11570994,0.00012937,2]
[342183499,1731561047832,-3444.29752377,0.00012937,2]
[342183500,1731561047842,-1853.16848314,0.0001294,2]
[342183501,1731561047855,-3444.29752377,0.00012941,2]
[342183502,1731561047865,-263.14728262,0.00012942,2]
[342183503,1731561047874,-9265.84241572,0.00012942,2]
[342183504,1731561047884,-9265.84241572,0.00012943,2]
[342183505,1731561047893,-422.84285337,0.00012943,2]
[342183506,1731561047903,-3575.03182191,0.00012945,2]
[342183507,1731561047913,-200.0,0.00012945,2]
[342183508,1731561047923,-642.41053861,0.00012945,2]
[342183509,1731561047932,-642.41053861,0.00012945,2]
[342183510,1731561047943,-7311.08159383,0.00012947,2]
[342183511,1731561047953,-200.0,0.00012948,2]
[342183512,1731561047962,-263.14728262,0.00012949,2]
[342183513,1731561047971,-2659.70097521,0.00012994,2]
[342183514,1731561047981,-504.95174624,0.00012994,2]
[342183515,1731561047990,-305.95521214,0.00012999,2]
[342183516,1731561048000,-375358.06547597,0.00013,2]
[342183517,1731561048009,-245035.40701516,0.00013,2]
[342183518,1731561048019,-145624.62332044,0.00013,2]
[342183519,1731561048029,-155354.60657039,0.00013,2]
[342183520,1731561048038,-1000.0,0.00013,3]
[342183521,1731561048048,-1000.0,0.00013,3]
[342183522,1731561048057,-150.0,0.00013,2]
[342183523,1731561048067,-1255.0,0.00013,2]
[342183524,1731561048076,-453.0,0.00013,2]
[342183525,1731561048086,-563.0,0.00013,2]
[342183526,1731561048095,-1992.0,0.00013,2]
[342183527,1731561048106,-628.0,0.00013,2]
[342183528,1731561048116,-560.0,0.00013,2]
[342183529,1731561048128,-1924.0,0.00013,2]
[342183530,1731561048436,-814.0,0.00013,2]
[342183531,1731561048446,-1259.0,0.00013,2]
[342183532,1731561048455,-1335.247,0.00013,2]
[342183533,1731561048465,-3746.0,0.00013,2]
[342183534,1731561048474,-922.0,0.00013,2]
[342183535,1731561048484,-1487.77,0.00013013,2]
[342183536,1731561048494,-1054.0,0.00013179,2]
[342183537,1731561048505,-300.0,0.00013231,2]
[342183538,1731561048515,-151.67,0.00013231,2]
[342183539,1731561048525,-151.51,0.00013231,2]
[342183540,1731561048534,-300.0,0.00013231,2]
[342183541,1731561048545,-150.0,0.00013231,2]
[342183542,1731561048554,-150.0,0.00013231,2]
[342183543,1731561048564,-150.0,0.00013231,2]
[342183544,1731561048574,-150.0,0.00013231,2]
[342183545,1731561048584,-300.0,0.00013231,2]
[342183546,1731561048594,-150.0,0.00013231,2]
[342183547,1731561048607,-150.0,0.00013231,2]
[342183548,1731561048618,-300.0,0.00013231,2]
[342183549,1731561048627,-300.0,0.00013231,2]
[342183550,1731561048636,-150.0,0.00013231,2]
[342183551,1731561048646,-150.0,0.00013231,2]
[342183552,1731561048656,-360.31,0.00013231,2]
[342183553,1731561048666,-150.0,0.00013231,2]
[342183554,1731561048676,-5762.3223488,0.00013233,2]
[342183555,1731561048686,-152.594956,0.00013237,2]
[342183556,1731561048695,-1487.77,0.00013287,2]
[342183557,1731561048705,-80173.0,0.000133,2]
[342183558,1731561048714,-168.27,0.0001331,2]
[342183559,1731561048723,-1500.0,0.00013334,2]
[342183560,1731561048733,-164.42,0.00013398,2]
[342183561,1731561048743,-152.594956,0.00013402,2]
[342183562,1731561048753,-3203.34,0.00013425,2]
[342183563,1731561048762,-261.6,0.00013428,2]
[342183564,1731561048772,-1500.0,0.00013453,2]
[342183565,1731561048781,-152.48307639,0.00013464,2]
[342183566,1731561048790,-600.0,0.000135,2]
[342183567,1731561048801,-1487.77,0.00013561,2]
[342183568,1731561048810,-152.594956,0.00013567,2]
[342183569,1731561048820,-1000.0,0.00013597,2]
[342183570,1731561048829,-99296.70727165,0.000136,2]
[342183571,1731561048839,-150.0,0.00013638,2]
[342183572,1731561048849,-150.0,0.00013686,2]
[342183573,1731561048859,-150.0,0.00013695,2]
[342183574,1731561048869,-1083.97,0.00013698,2]
[342183575,1731561048879,-285.80303471,0.00013698,2]
[342183576,1731561048888,-500.0,0.00013699,2]
[342183577,1731561048898,-500.0,0.00013699,2]
[342183578,1731561048907,-500.0,0.00013699,2]
[342183579,1731561048917,-500.0,0.00013699,2]
[342183580,1731561048927,-500.0,0.00013699,2]
[342183581,1731561048936,-500.0,0.00013699,2]
[342183582,1731561048946,-500.0,0.00013699,2]
[342183583,1731561048955,-506.04971842,0.00013699,2]
[342183584,1731561048964,-304.52224977,0.00013699,2]
[342183585,1731561048974,-456.0,0.00013699,2]
[342183586,1731561048983,-456.0,0.00013699,2]
[342183587,1731561048993,-456.0,0.00013699,2]
[342183588,1731561049003,-456.0,0.00013699,2]
[342183589,1731561049013,-456.0,0.00013699,2]
[342183590,1731561049024,-456.0,0.00013699,2]
[342183591,1731561049034,-456.0,0.00013699,2]
[342183592,1731561049044,-456.0,0.00013699,2]
[342183593,1731561049054,-456.0,0.00013699,2]
[342183594,1731561049063,-456.0,0.00013699,2]
[342183595,1731561049073,-456.0,0.00013699,2]
[342183596,1731561049082,-456.0,0.00013699,2]
[342183597,1731561049091,-456.0,0.00013699,2]
[342183598,1731561049102,-456.0,0.00013699,2]
[342183599,1731561049112,-456.0,0.00013699,2]
[342183600,1731561049122,-456.0,0.00013699,2]
[342183601,1731561049132,-456.0,0.00013699,2]
[342183602,1731561049145,-456.0,0.00013699,2]
[342183603,1731561049154,-456.0,0.00013699,2]
[342183604,1731561049163,-456.0,0.00013699,2]
[342183605,1731561049173,-456.0,0.00013699,2]
[342183606,1731561049184,-456.0,0.00013699,2]
[342183607,1731561049193,-456.0,0.00013699,2]
[342183608,1731561049202,-456.0,0.00013699,2]
[342183609,1731561049211,-456.0,0.00013699,2]
[342183610,1731561049220,-456.0,0.00013699,2]
[342183611,1731561049231,-456.0,0.00013699,2]
[342183612,1731561049241,-456.0,0.00013699,2]
[342183613,1731561049250,-456.0,0.00013699,2]
[342183614,1731561049260,-456.0,0.00013699,2]
[342183615,1731561049271,-456.0,0.00013699,2]
[342183616,1731561049281,-456.0,0.00013699,2]
[342183617,1731561049291,-456.0,0.00013699,2]
[342183618,1731561049302,-456.0,0.00013699,2]
[342183619,1731561049313,-456.0,0.00013699,2]
[342183620,1731561049322,-456.0,0.00013699,2]
[342183621,1731561049332,-456.0,0.00013699,2]
[342183622,1731561049342,-456.0,0.00013699,2]
[342183623,1731561049354,-456.0,0.00013699,2]
[342183624,1731561049366,-456.0,0.00013699,2]
[342183625,1731561049375,-456.0,0.00013699,2]
[342183626,1731561049385,-456.0,0.00013699,2]
[342183627,1731561049395,-456.0,0.00013699,2]
[342183628,1731561049404,-456.0,0.00013699,2]
[342183629,1731561049414,-456.0,0.00013699,2]
[342183630,1731561049424,-456.0,0.00013699,2]
[342183631,1731561049434,-456.0,0.00013699,2]
[342183632,1731561049444,-456.0,0.00013699,2]
[342183633,1731561049454,-456.0,0.00013699,2]
[342183634,1731561049464,-456.0,0.00013699,2]
[342183635,1731561049474,-456.0,0.00013699,2]
[342183636,1731561049484,-456.0,0.00013699,2]
[342183637,1731561049494,-456.0,0.00013699,2]
[342183638,1731561049504,-456.0,0.00013699,2]
[342183639,1731561049514,-456.0,0.00013699,2]
[342183640,1731561049523,-800.0,0.00013699,2]
[342183641,1731561049532,-456.0,0.00013699,2]
[342183642,1731561049542,-456.0,0.00013699,2]
[342183643,1731561049551,-456.0,0.00013699,2]
[342183644,1731561049561,-456.0,0.00013699,2]
[342183645,1731561049570,-456.0,0.00013699,2]
[342183646,1731561049580,-456.0,0.00013699,2]
[342183647,1731561049589,-456.0,0.00013699,2]
[342183648,1731561049600,-456.0,0.00013699,2]
[342183649,1731561049609,-456.0,0.00013699,2]
[342183650,1731561049619,-456.0,0.00013699,2]
[342183651,1731561049628,-456.0,0.00013699,2]
[342183652,1731561049637,-456.0,0.00013699,2]
[342183653,1731561049647,-456.0,0.00013699,2]
[342183654,1731561049656,-456.0,0.00013699,2]
[342183655,1731561049666,-456.0,0.00013699,2]
[342183656,1731561049675,-456.0,0.00013699,2]
[342183657,1731561049685,-456.0,0.00013699,2]
[342183658,1731561049694,-456.0,0.00013699,2]
[342183659,1731561049704,-456.0,0.00013699,2]
[342183660,1731561049713,-456.0,0.00013699,2]
[342183661,1731561049723,-456.0,0.00013699,2]
[342183662,1731561049732,-456.0,0.00013699,2]
[342183663,1731561049742,-456.0,0.00013699,2]
[342183664,1731561049750,-456.0,0.00013699,2]
[342183665,1731561049759,-456.0,0.00013699,2]
[342183666,1731561049768,-456.0,0.00013699,2]
[342183667,1731561049777,-456.0,0.00013699,2]
[342183668,1731561049787,-456.0,0.00013699,2]
[342183669,1731561049796,-456.0,0.00013699,2]
[342183670,1731561049805,-456.0,0.00013699,2]
[342183671,1731561049814,-456.0,0.00013699,2]
[342183672,1731561049824,-456.0,0.00013699,2]
[342183673,1731561049833,-456.0,0.00013699,2]
[342183674,1731561049842,-456.0,0.00013699,2]
[342183675,1731561049854,-456.0,0.00013699,2]
[342183676,1731561049864,-456.0,0.00013699,2]
[342183677,1731561049873,-456.0,0.00013699,2]
[342183678,1731561049883,-456.0,0.00013699,2]
[342183679,1731561049892,-456.0,0.00013699,2]
[342183680,1731561049902,-456.0,0.00013699,2]
[342183681,1731561049911,-456.0,0.00013699,2]
[342183682,1731561049920,-456.0,0.00013699,2]
[342183683,1731561049930,-251.85,0.00013699,2]
[342183684,1731561049939,-800.0,0.00013699,2]
[342183685,1731561049948,-800.0,0.00013699,2]
[342183686,1731561049957,-173.39,0.00013699,2]
[342183687,1731561049967,-800.0,0.00013699,2]
[342183688,1731561049975,-150.0,0.00013699,2]
[342183689,1731561049985,-800.0,0.00013699,2]
[342183690,1731561049994,-800.0,0.00013699,2]
[342183691,1731561050003,-200.0,0.00013699,2]
[342183692,1731561050012,-800.0,0.00013699,2]
[342183693,1731561050022,-25318.07,0.00013699,2]
[342183694,1731561050031,-800.0,0.00013699,2]
[342183695,1731561050040,-800.0,0.00013699,2]
[342183696,1731561050050,-927.59,0.00013699,2]
[342183697,1731561050059,-500.0,0.00013699,2]
[342183698,1731561050068,-800.0,0.00013699,2]
[342183699,1731561050078,-711.29,0.00013699,2]
[342183700,1731561050087,-300.0,0.00013699,2]
[342183701,1731561050097,-800.0,0.00013699,2]
[342183702,1731561050107,-800.0,0.00013699,2]
[342183703,1731561050117,-800.0,0.00013699,2]
[342183704,1731561050130,-526.20116806,0.00013699,2]
[342183705,1731561050139,-500.0,0.00013699,2]
[342183706,1731561050148,-500.0,0.00013699,2]
[342183707,1731561050158,-500.0,0.00013699,2]
[342183708,1731561050167,-500.0,0.00013699,2]
[342183709,1731561050177,-160.56144659,0.00013699,2]
[342183710,1731561050187,-500.19633319,0.00013699,2]
[342183711,1731561050196,-604.23657126,0.00013699,2]
[342183712,1731561050205,-161.22920457,0.00013699,2]
[342183713,1731561050218,-500.0,0.00013699,2]
[342183714,1731561050234,-501.07093208,0.00013699,2]
[342183715,1731561050248,-500.0,0.00013699,2]
[342183716,1731561050264,-299.37102566,0.00013699,2]
[342183717,1731561050276,-162.21718704,0.00013699,2]
[342183718,1731561050290,-500.0,0.00013699,2]
[342183719,1731561050299,-501.65179571,0.00013699,2]
[342183720,1731561050309,-161.19323012,0.00013699,2]
[342183721,1731561050318,-513.14959391,0.00013699,2]
[342183722,1731561050327,-500.0,0.00013699,2]
[342183723,1731561050337,-500.0,0.00013699,2]
[342183724,1731561050348,-501.47794901,0.00013699,2]
[342183725,1731561050357,-500.0,0.00013699,2]
[342183726,1731561050366,-375.0,0.000137,2]
[342183727,1731561050376,-1250.0,0.000137,2]
[342183728,1731561050386,-519.96559642,0.000137,2]
[342183729,1731561050396,-519.96559642,0.000137,2]
[342183730,1731561050405,-519.96559642,0.000137,2]
[342183731,1731561050414,-519.96559642,0.000137,2]
[342183732,1731561050423,-519.96559642,0.000137,2]
[342183733,1731561050432,-519.96559642,0.000137,2]
[342183734,1731561050441,-519.96559642,0.000137,2]
[342183735,1731561050450,-519.96559642,0.000137,2]
[342183736,1731561050459,-519.96559642,0.000137,2]
[342183737,1731561050468,-519.96559642,0.000137,2]
[342183738,1731561050477,-519.96559642,0.000137,2]
[342183739,1731561050486,-519.96559642,0.000137,2]
[342183740,1731561050495,-519.96559642,0.000137,2]
[342183741,1731561050505,-519.96559642,0.000137,2]
[342183742,1731561050514,-519.96559642,0.000137,2]
[342183743,1731561050523,-519.96559642,0.000137,2]
[342183744,1731561050533,-519.96559642,0.000137,2]
[342183745,1731561050542,-519.96559642,0.000137,2]
[342183746,1731561050550,-519.96559642,0.000137,2]
[342183747,1731561050559,-519.96,0.000137,2]
[342183748,1731561050568,-518.40157848,0.000137,2]
[342183749,1731561050578,-518.40157848,0.000137,2]
[342183750,1731561050587,-518.40157848,0.000137,2]
[342183751,1731561050598,-518.40157848,0.000137,2]
[342183752,1731561050608,-518.40157848,0.000137,2]
[342183753,1731561050617,-518.40157848,0.000137,2]
[342183754,1731561050626,-518.40157848,0.000137,2]
[342183755,1731561050635,-518.40157848,0.000137,2]
[342183756,1731561050644,-518.40157848,0.000137,2]
[342183757,1731561050658,-518.40157848,0.000137,2]
[342183758,1731561050667,-518.40157848,0.000137,2]
[342183759,1731561050677,-518.40157848,0.000137,2]
[342183760,1731561050686,-518.40157848,0.000137,2]
[342183761,1731561050696,-518.40157848,0.000137,2]
[342183762,1731561050705,-518.40157848,0.000137,2]
[342183763,1731561050715,-518.40157848,0.000137,2]
[342183764,1731561050724,-518.40157848,0.000137,2]
[342183765,1731561050733,-518.40157848,0.000137,2]
[342183766,1731561050743,-518.40157848,0.000137,2]
[342183767,1731561050752,-518.4,0.000137,2]
[342183768,1731561050762,-2734.04800707,0.000137,2]
[342183769,1731561050771,-2734.04800707,0.000137,2]
[342183770,1731561050782,-2734.04800707,0.000137,2]
[342183771,1731561050791,-2734.04800707,0.000137,2]
[342183772,1731561050801,-2734.04800707,0.000137,2]
[342183773,1731561050810,-2734.04800707,0.000137,2]
[342183774,1731561050819,-2734.04800707,0.000137,2]
[342183775,1731561050829,-2734.04800707,0.000137,2]
[342183776,1731561050838,-2734.04800707,0.000137,2]
[342183777,1731561050848,-2734.04800707,0.000137,2]
[342183778,1731561050857,-2734.04800707,0.000137,2]
[342183779,1731561050866,-2734.04800707,0.000137,2]
[342183780,1731561050875,-2734.04800707,0.000137,2]
[342183781,1731561050884,-2734.04800707,0.000137,2]
[342183782,1731561050893,-2734.04800707,0.000137,2]
[342183783,1731561050903,-2734.04800707,0.000137,2]
[342183784,1731561050913,-2734.04800707,0.000137,2]
[342183785,1731561050922,-2734.04800707,0.000137,2]
[342183786,1731561050932,-2734.04800707,0.000137,2]
[342183787,1731561050941,-2734.04,0.000137,2]
[342183788,1731561050950,-172.86,0.000137,2]
[342183789,1731561050959,-172.86,0.000137,2]
[342183790,1731561050968,-150.0,0.00013713,2]
[342183791,1731561050977,-152.594956,0.00013733,2]
[342183792,1731561050986,-150.0,0.00013744,2]
[342183793,1731561050996,-1500.0,0.00013783,2]
[342183794,1731561051006,-5762.3223488,0.00013789,2]
[342183795,1731561051015,-1083.97,0.00013835,2]
[342183796,1731561051024,-1487.77,0.00013835,2]
[342183797,1731561051033,-1500.0,0.00013837,2]
[342183798,1731561051042,-1054.0,0.00013873,2]
[342183799,1731561051051,-150.0,0.00013881,2]
[342183800,1731561051060,-1500.0,0.00013888,2]
[342183801,1731561051070,-150.0,0.00013895,2]
[342183802,1731561051079,-152.594956,0.00013898,2]
[342183803,1731561051088,-1000.0,0.00013899,2]
[342183804,1731561051097,-150.0,0.00013927,2]
[342183805,1731561051107,-590.72,0.00013929,2]
[342183806,1731561051117,-168.27,0.00013948,2]
[342183807,1731561051127,-1083.97,0.00013972,2]
[342183808,1731561051138,-150.0,0.00013992,2]
[342183809,1731561051149,-289790.52748,0.00014,2]
[342183810,1731561051158,-149183.25887059,0.00014,2]
[342183811,1731561051168,-28050.48733274,0.00014,2]
[342183812,1731561051178,-1000.0,0.00014,3]
[342183813,1731561051189,-527.0,0.00014,4]
[342183814,1731561051199,-1500.0,0.00014,2]
[342183815,1731561051208,-150.0,0.00014052,2]
[342183816,1731561051220,-152.32,0.00014052,2]
[342183817,1731561051231,-150.0,0.00014052,2]
[342183818,1731561051240,-150.0,0.00014052,2]
[342183819,1731561051250,-151.96,0.00014052,2]
[342183820,1731561051259,-150.0,0.00014052,2]
[342183821,1731561051268,-150.0,0.00014052,2]
[342183822,1731561051278,-151.03,0.00014052,2]
[342183823,1731561051288,-150.0,0.00014052,2]
[342183824,1731561051297,-150.0,0.00014052,2]
[342183825,1731561051307,-150.0,0.00014052,2]
[342183826,1731561051316,-150.0,0.00014052,2]
[342183827,1731561051325,-150.0,0.00014052,2]
[342183828,1731561051335,-150.0,0.00014059,2]
[342183829,1731561051345,-150.0,0.00014081,2]
[342183830,1731561051356,-1083.97,0.00014109,2]
[342183831,1731561051366,-1487.77,0.00014109,2]
[342183832,1731561051375,-150.0,0.00014131,2]
[342183833,1731561051387,-150.0,0.00014153,2]
[342183834,1731561051399,-164.42,0.00014186,2]
[342183835,1731561051409,-1083.97,0.00014246,2]
[342183836,1731561051418,-34440.8,0.00014247,2]
[342183837,1731561051427,-1000.0,0.00014247,2]
[342183838,1731561051437,-1000.0,0.00014247,2]
[342183839,1731561051447,-1000.0,0.00014247,2]
[342183840,1731561051457,-1000.0,0.00014247,2]
[342183841,1731561051467,-160.95752305,0.00014247,2]
[342183842,1731561051476,-1000.0,0.00014247,2]
[342183843,1731561051486,-500.48173482,0.00014247,2]
[342183844,1731561051495,-1000.0,0.00014247,2]
[342183845,1731561051504,-1000.0,0.00014247,2]
[342183846,1731561051514,-1000.0,0.00014247,2]
[342183847,1731561051523,-5762.3223488,0.00014344,2]
[342183848,1731561051533,-1083.97,0.00014383,2]
[342183849,1731561051542,-1487.77,0.00014383,2]
[342183850,1731561051551,-200.0,0.0001439,2]
[342183851,1731561051560,-8089.11257672,0.0001439,2]
[342183852,1731561051569,-150.0,0.00014419,2]
[342183853,1731561051578,-150.0,0.0001442,2]
[342183854,1731561051588,-150.0,0.00014437,2]
[342183855,1731561051597,-15000.0,0.00014463,7]
[342183856,1731561051609,-1500.0,0.00014496,2]
[342183857,1731561051618,-11095.37137028,0.000145,3]
[342183858,1731561051627,-1083.97,0.0001452,2]